bitfinex-derivatives/quotes_BTCF0:USTF0_20241013
["timestamp","ask_amount","ask_price","bid_price","bid_amount"]
[1728787818856,0.194974,62844.0,62843.0,0.0315]
[1728787820261,0.2241235,62844.0,62843.0,0.0315]
[1728787820659,0.1141235,62844.0,62843.0,0.0315]
[1728787820855,0.2241235,62844.0,62843.0,0.0315]
[1728787821257,0.25486569,62844.0,62843.0,0.0315]
[1728787821452,0.11571619,62844.0,62843.0,0.0315]
[1728787821961,0.22571619,62844.0,62843.0,0.0315]
[1728787824860,0.03614219,62844.0,62843.0,0.0315]
[1728787825063,0.0054,62844.0,62843.0,0.0315]
[1728787827363,0.0024,62844.0,62843.0,0.0315]
[1728787827567,0.0024,62844.0,62843.0,0.0345]
[1728787827760,0.0004,62844.0,62843.0,0.0345]
[1728787827963,0.0004,62844.0,62843.0,0.0385]
[1728787828166,0.1104,62844.0,62843.0,0.0355]
[1728787829868,0.1104,62844.0,62843.0,0.0335]
[1728787830063,0.1114,62844.0,62843.0,0.0315]
[1728787835069,0.1114,62844.0,62843.0,0.14725365]
[1728787836161,0.07158535,62844.0,62843.0,0.14725365]
[1728787836366,0.07158535,62844.0,62843.0,0.0319]
[1728787837663,0.07158535,62844.0,62843.0,0.0004]
[1728787839466,0.10232746,62844.0,62843.0,0.0024]
[1728787839968,0.10132746,62844.0,62843.0,0.0024]
[1728787840564,0.10132746,62844.0,62843.0,0.0044]
[1728787840767,0.10132746,62844.0,62843.0,0.0024]
[1728787841170,0.21132746,62844.0,62843.0,0.0024]
[1728787841476,0.14030328,62844.0,62843.0,0.0024]
[1728787841966,0.25030328,62844.0,62843.0,0.0024]
[1728787842560,0.14130328,62844.0,62843.0,0.0004]
[1728787842763,0.14130328,62844.0,62843.0,0.0014]
[1728787843170,0.14130328,62844.0,62843.0,0.0004]
[1728787843376,0.10294789,62844.0,62843.0,0.11620827]
[1728787845762,0.03236254,62844.0,62843.0,0.11620827]
[1728787845967,0.14236254,62844.0,62843.0,0.11620827]
[1728787846767,0.14236254,62844.0,62843.0,0.0004]
[1728787846964,0.14236254,62844.0,62843.0,0.11620603]
[1728787849077,0.50316254,62844.0,62843.0,0.11620603]
[1728787850073,0.50316254,62844.0,62843.0,0.19571438]
[1728787851368,0.49566254,62844.0,62843.0,0.0004]
[1728787858277,0.5264073,62844.0,62843.0,0.0004]
[1728787859681,0.49566254,62844.0,62843.0,0.0004]
[1728787860280,0.13486254,62844.0,62843.0,0.0004]
[1728787860478,0.49566254,62844.0,62843.0,0.0004]
[1728787863591,0.13486254,62844.0,62843.0,0.0004]
[1728787863793,0.49566254,62844.0,62843.0,0.0004]
[1728787865984,0.13486254,62844.0,62843.0,0.0004]
[1728787866183,0.49566254,62844.0,62843.0,0.0004]
[1728787866384,0.13486254,62844.0,62843.0,0.11628489]
[1728787866591,0.49566254,62844.0,62843.0,0.11628489]
[1728787869385,0.49566254,62844.0,62843.0,0.11634259]
[1728787872100,0.49566254,62844.0,62843.0,0.21174151]
[1728787873396,0.52640724,62844.0,62843.0,0.0004]
[1728787874293,0.56538347,62844.0,62843.0,0.0004]
[1728787875997,0.20458347,62844.0,62843.0,0.0004]
[1728787876197,0.56538347,62844.0,62843.0,0.0004]
[1728787876502,0.52640724,62844.0,62843.0,0.0004]
[1728787876995,0.41640724,62844.0,62843.0,0.0004]
[1728787877198,0.52640724,62844.0,62843.0,0.0004]
[1728787881501,0.45584352,62844.0,62843.0,0.11640025]
[1728787883809,0.4708,62844.0,62843.0,0.11640025]
[1728787885202,0.49943855,62844.0,62843.0,0.11640025]
[1728787888801,0.49943855,62844.0,62843.0,0.11611912]
[1728787889503,0.38943855,62844.0,62843.0,0.11611912]
[1728787889689,0.49943855,62844.0,62843.0,0.11611912]
[1728787891900,0.49943855,62844.0,62843.0,0.11611934]
[1728787893795,0.49943855,62844.0,62843.0,0.0004]
[1728787896207,0.53018255,62844.0,62843.0,0.0004]
[1728787901710,0.16938255,62844.0,62843.0,0.0004]
[1728787902016,0.53018255,62844.0,62843.0,0.0004]
[1728787902311,0.8063378,62844.0,62841.0,0.0004]
[1728787902513,0.8063378,62844.0,62837.0,0.0004]
[1728787902514,0.079581,62838.0,62837.0,0.0004]
[1728787902710,0.691525,62838.0,62837.0,0.0004]
[1728787904009,0.691525,62838.0,62837.0,0.0054]
[1728787904212,0.660781,62838.0,62837.0,0.0054]
[1728787904413,0.299981,62838.0,62837.0,0.0054]
[1728787904607,0.660781,62838.0,62837.0,0.0094]
[1728787906408,0.299981,62838.0,62837.0,0.0094]
[1728787906719,0.660781,62838.0,62837.0,0.0094]
[1728787909912,0.299981,62838.0,62837.0,0.0094]
[1728787910316,0.660781,62838.0,62837.0,0.0094]
[1728787911126,0.660781,62838.0,62837.0,0.08901749]
[1728787911522,0.440781,62838.0,62837.0,0.08901749]
[1728787911827,0.660781,62838.0,62837.0,0.08901749]
[1728787912025,0.299981,62838.0,62837.0,0.08901749]
[1728787912224,0.299981,62838.0,62837.0,0.0094]
[1728787912724,0.660781,62838.0,62837.0,0.0094]
[1728787914224,0.660781,62838.0,62837.0,0.20488298]
[1728787915827,0.660781,62838.0,62837.0,0.08901749]
[1728787916622,0.660781,62838.0,62837.0,0.0094]
[1728787918426,0.299981,62838.0,62837.0,0.0094]
[1728787918624,0.660781,62838.0,62837.0,0.0094]
[1728787919330,0.660781,62838.0,62837.0,0.08901749]
[1728787920335,0.299981,62838.0,62837.0,0.08901749]
[1728787920535,0.660781,62838.0,62837.0,0.08901749]
[1728787921434,0.660781,62838.0,62837.0,0.20492326]
[1728787921635,0.079582,62837.0,62834.0,0.0008]
[1728787921833,0.079584,62836.0,62835.0,0.11591069]
[1728787922337,0.079584,62836.0,62834.0,0.0008]
[1728787922541,0.079584,62836.0,62831.0,0.0004]
[1728787922542,0.079589,62832.0,62831.0,0.0004]
[1728787922833,0.079589,62832.0,62825.0,0.09634098]
[1728787922834,0.5812,62832.0,62825.0,0.09634098]
[1728787923036,0.660796,62826.0,62825.0,0.0008]
[1728787923736,0.649796,62826.0,62825.0,0.0008]
[1728787923933,0.649796,62826.0,62825.0,0.0098]
[1728787924443,0.650796,62826.0,62825.0,0.0208]
[1728787924833,0.651796,62826.0,62825.0,0.0208]
[1728787925841,0.68060372,62826.0,62825.0,0.0208]
[1728787931145,0.31980372,62826.0,62825.0,0.0208]
[1728787931445,0.68060372,62826.0,62825.0,0.0208]
[1728787937858,0.68060372,62826.0,62825.0,0.06845235]
[1728787938764,0.68060372,62826.0,62825.0,0.0208]
[1728787939150,0.68060372,62826.0,62825.0,0.06845284]
[1728787939652,0.68060372,62826.0,62825.0,0.0208]
[1728787940854,0.68060372,62826.0,62825.0,0.06845498]
[1728787941246,0.68060372,62826.0,62825.0,0.0208]
[1728787941448,0.68060372,62826.0,62825.0,0.06845657]
[1728787941649,0.67960372,62826.0,62825.0,0.05945657]
[1728787941963,0.67860372,62826.0,62825.0,0.0008]
[1728787942357,0.67860372,62826.0,62825.0,0.04845977]
[1728787942552,0.68360372,62826.0,62825.0,0.04945977]
[1728787943057,0.46360372,62826.0,62825.0,0.04945977]
[1728787943265,0.68360372,62826.0,62825.0,0.0018]
[1728787943455,0.68960372,62826.0,62825.0,0.0028]
[1728787945665,0.32880372,62826.0,62825.0,0.0028]
[1728787945959,0.68960372,62826.0,62825.0,0.0028]
[1728787946756,0.68960372,62826.0,62825.0,0.06636656]
[1728787948265,0.68960372,62826.0,62825.0,0.0028]
[1728787953273,0.72035842,62826.0,62825.0,0.0028]
[1728787956372,0.68960372,62826.0,62825.0,0.11731693]
[1728787957170,0.32880372,62826.0,62825.0,0.11731693]
[1728787957378,0.68960372,62826.0,62825.0,0.11731693]
[1728787963085,0.68960372,62826.0,62825.0,0.1173111]
[1728787964278,0.32880372,62826.0,62825.0,0.0028]
[1728787964482,0.68960372,62826.0,62825.0,0.0028]
[1728787965180,0.32880372,62826.0,62825.0,0.0028]
[1728787965387,0.68960372,62826.0,62825.0,0.0028]
[1728787969284,0.0114,62826.0,62825.0,0.0028]
[1728787969485,0.0114,62826.0,62825.0,0.54112]
[1728787969688,0.1214,62826.0,62825.0,0.54112]
[1728787969886,0.1214,62826.0,62825.0,0.6048229]
[1728787970184,0.1214,62826.0,62825.0,0.54112]
[1728787970490,0.1214,62826.0,62825.0,1.50192]
[1728787970491,0.0114,62826.0,62825.0,1.50192]
[1728787970692,0.0004,62832.0,62825.0,1.58194863]
[1728787970693,0.11,62831.0,62825.0,1.58194863]
[1728787970985,0.11,62831.0,62827.0,0.07962863]
[1728787971193,0.11,62831.0,62829.0,0.06363185]
[1728787971388,0.0004,62832.0,62830.0,0.68683076]
[1728787971587,0.0004,62832.0,62831.0,0.11391702]
[1728787971796,0.0004,62832.0,62831.0,0.20935076]
[1728787971986,0.0004,62832.0,62831.0,0.68683076]
[1728787972184,0.0004,62832.0,62831.0,0.59139702]
[1728787972690,0.0004,62832.0,62831.0,0.68646447]
[1728787972896,0.0004,62832.0,62831.0,0.20898447]
[1728787973190,0.0114,62832.0,62831.0,0.20992569]
[1728787973392,0.1214,62832.0,62831.0,0.20992569]
[1728787973596,0.1324,62832.0,62831.0,0.21092569]
[1728787974198,0.1324,62832.0,62831.0,0.11555073]
[1728787975487,0.121,62832.0,62831.0,0.21132569]
[1728787975886,0.121,62832.0,62831.0,0.11595073]
[1728787976101,0.011,62832.0,62831.0,0.68875896]
[1728787976296,0.121,62832.0,62831.0,0.68875896]
[1728787976500,0.121,62832.0,62831.0,1.28875896]
[1728787976501,0.011,62832.0,62831.0,1.28875896]
[1728787976703,0.011,62832.0,62831.0,1.19343073]
[1728787977306,0.011,62832.0,62831.0,1.28872152]
[1728787977809,0.011,62832.0,62831.0,1.19343073]
[1728787978707,0.011,62832.0,62831.0,1.28870388]
[1728787979500,0.011,62832.0,62831.0,1.07988]
[1728787982608,0.011,62832.0,62831.0,1.44068]
[1728787983710,0.0004,62835.0,62834.0,0.079586]
[1728787983911,0.0004,62835.0,62834.0,0.679586]
[1728787984209,0.0004,62835.0,62834.0,1.157026]
[1728787984416,0.0004,62835.0,62834.0,1.189026]
[1728787984721,0.1104,62838.0,62837.0,0.079582]
[1728787984722,0.0004,62838.0,62837.0,0.079582]
[1728787985013,0.0004,62842.0,62841.0,0.079577]
[1728787985214,0.0004,62842.0,62841.0,0.789577]
[1728787985425,0.0004,62842.0,62841.0,1.266977]
[1728787986113,0.0084,62842.0,62841.0,1.267977]
[1728787986503,0.00059812,62842.0,62841.0,1.38158362]
[1728787988122,0.00059812,62842.0,62841.0,1.41031899]
[1728787989010,0.00059812,62842.0,62841.0,1.51056872]
[1728787989409,0.00059812,62842.0,62841.0,1.41031899]
[1728787994417,0.00059812,62842.0,62841.0,1.36149034]
[1728787997233,0.00059812,62842.0,62841.0,1.29811237]
[1728787998928,0.18997,62847.0,62845.0,0.079571]
[1728787998929,0.1104,62847.0,62845.0,0.079571]
[1728787999123,0.1104,62847.0,62845.0,0.25300996]
[1728787999331,0.1104,62847.0,62846.0,0.06343896]
[1728787999529,0.1104,62847.0,62845.0,0.189571]
[1728787999732,0.0004,62846.0,62845.0,0.189571]
[1728788000129,0.0004,62846.0,62845.0,0.190571]
[1728788000636,0.0004,62846.0,62845.0,0.191571]
[1728788002434,0.0328,62851.0,62850.0,0.079566]
[1728788003722,0.0328,62851.0,62850.0,0.080566]
[1728788003923,0.0328,62851.0,62850.0,0.081566]
[1728788004728,0.0004,62851.0,62850.0,0.081566]
[1728788007937,0.0004,62851.0,62850.0,0.558886]
[1728788009036,0.1104,62851.0,62850.0,0.002]
[1728788009437,0.1104,62851.0,62850.0,0.1140861]
[1728788009836,0.1104,62851.0,62850.0,0.14329327]
[1728788011443,0.1104,62851.0,62850.0,0.23856642]
[1728788012336,0.1104,62851.0,62850.0,0.20935925]
[1728788012536,0.11,62851.0,62850.0,0.1144861]
[1728788012739,0.11,62851.0,62850.0,0.20982134]
[1728788013141,0.1403,62851.0,62850.0,0.20982134]
[1728788013647,0.1403,62851.0,62850.0,0.1144861]
[1728788015839,0.1403,62851.0,62850.0,0.2477775]
[1728788016344,0.10049107,62851.0,62850.0,0.24751662]
[1728788016541,0.13122729,62851.0,62850.0,0.0024]
[1728788022345,0.06103622,62851.0,62850.0,0.0024]
[1728788022843,0.10000167,62851.0,62850.0,0.0024]
[1728788023046,0.06103622,62851.0,62850.0,0.0024]
[1728788023236,0.06103621,62851.0,62850.0,0.0024]
[1728788023752,0.06103621,62851.0,62850.0,0.24696694]
[1728788023753,0.0303,62851.0,62850.0,0.24696694]
[1728788028052,0.0303,62851.0,62850.0,0.24700657]
[1728788028350,0.07956,62855.0,62850.0,0.32657257]
[1728788028652,0.07956,62855.0,62851.0,0.24460657]
[1728788028854,0.07956,62855.0,62852.0,0.24460657]
[1728788029041,0.07956,62855.0,62853.0,0.11159254]
[1728788029246,0.07956,62855.0,62854.0,0.11159254]
[1728788031651,0.07956,62855.0,62854.0,0.11259254]
[1728788032052,0.07956,62855.0,62854.0,0.11359254]
[1728788034572,0.07956,62855.0,62854.0,0.24662904]
[1728788036876,0.07956,62855.0,62854.0,0.11359254]
[1728788038566,0.14926085,62855.0,62854.0,0.002]
[1728788039379,0.14926085,62855.0,62854.0,0.03072278]
[1728788042082,0.14926085,62855.0,62854.0,0.002]
[1728788042380,0.11029585,62855.0,62854.0,0.002]
[1728788046589,0.07956,62855.0,62854.0,0.11361288]
[1728788049887,0.36228,62858.0,62854.0,0.11361288]
[1728788050091,0.3612,62858.0,62855.0,0.11161288]
[1728788050276,0.3612,62858.0,62856.0,0.11161288]
[1728788050484,0.3612,62858.0,62857.0,0.11161288]
[1728788050682,0.3612,62858.0,62857.0,0.11161926]
[1728788051686,0.3612,62858.0,62857.0,0.11261926]
[1728788051891,0.3612,62858.0,62857.0,0.11361926]
[1728788052089,0.0004,62864.0,62857.0,0.11361926]
[1728788052287,0.0004,62864.0,62863.0,0.11]
[1728788052488,0.0004,62864.0,62863.0,0.11161926]
[1728788052882,0.0004,62864.0,62863.0,0.20711197]
[1728788053290,0.0004,62864.0,62863.0,0.11161926]
[1728788053591,0.0004,62864.0,62860.0,0.11]
[1728788053592,0.11892529,62864.0,62860.0,0.11]
[1728788053888,0.14346515,62861.0,62860.0,0.11]
[1728788054192,0.11892529,62861.0,62860.0,0.11]
[1728788054781,0.26199044,62861.0,62860.0,0.112]
[1728788055290,0.11892529,62861.0,62860.0,0.112]
[1728788056094,0.26199044,62861.0,62860.0,0.112]
[1728788056292,0.11892529,62861.0,62860.0,0.112]
[1728788058191,0.07009171,62861.0,62860.0,0.112]
[1728788058489,0.11892594,62861.0,62860.0,0.112]
[1728788059183,0.11892594,62861.0,62860.0,0.14100357]
[1728788059184,0.07009171,62861.0,62860.0,0.14100357]
[1728788059583,0.03113182,62861.0,62860.0,0.14100357]
[1728788059799,0.0004,62861.0,62860.0,0.14100357]
[1728788059997,0.07009171,62861.0,62860.0,0.14100357]
[1728788061586,0.0004,62861.0,62860.0,0.14100357]
[1728788064202,0.0004,62861.0,62860.0,1.32824357]
[1728788064805,0.0004,62864.0,62860.0,1.52375356]
[1728788065101,0.0004,62864.0,62863.0,0.11]
[1728788065407,0.0004,62864.0,62863.0,0.17355163]
[1728788066898,0.0004,62864.0,62863.0,0.17455163]
[1728788067296,0.0004,62864.0,62863.0,0.17555163]
[1728788068101,0.0004,62864.0,62863.0,0.112]
[1728788068701,0.12749555,62864.0,62863.0,0.112]
[1728788068902,0.19748133,62864.0,62863.0,0.4718]
[1728788069211,0.07038578,62864.0,62863.0,0.4718]
[1728788070212,0.07038578,62864.0,62863.0,0.4708]
[1728788071810,0.12734828,62864.0,62863.0,0.4708]
[1728788072008,0.15837953,62864.0,62863.0,0.4708]
[1728788072208,0.07038578,62864.0,62863.0,0.4708]
[1728788076510,0.07033265,62864.0,62863.0,0.4708]
[1728788076714,0.0004,62864.0,62863.0,0.4708]
[1728788078507,0.0333,62871.0,62864.0,0.079548]
[1728788078812,0.0333,62871.0,62868.0,0.04763239]
[1728788079900,0.0333,62871.0,62868.0,0.04863239]
[1728788080513,0.0333,62871.0,62868.0,0.04963239]
[1728788081111,0.0333,62871.0,62869.0,0.04763239]
[1728788081413,0.0333,62871.0,62868.0,0.04963239]
[1728788081608,0.0333,62871.0,62869.0,0.04763239]
[1728788082206,0.0333,62871.0,62869.0,0.04863239]
[1728788083009,0.0333,62871.0,62869.0,0.04963239]
[1728788083214,0.0333,62871.0,62870.0,0.04763239]
[1728788084014,0.0333,62871.0,62869.0,0.04963239]
[1728788084316,0.0333,62871.0,62870.0,0.04763239]
[1728788084610,0.0333,62871.0,62870.0,0.04863239]
[1728788085216,0.0333,62871.0,62870.0,0.04963239]
[1728788086213,0.0333,62871.0,62870.0,0.04863239]
[1728788086820,0.0333,62871.0,62870.0,0.04963239]
[1728788087117,0.0333,62871.0,62870.0,0.002]
[1728788089611,0.0333,62871.0,62870.0,0.112]
[1728788091722,0.10329585,62871.0,62870.0,0.112]
[1728788091906,0.20917851,62871.0,62870.0,0.112]
[1728788094523,0.20917851,62871.0,62870.0,0.05843557]
[1728788096736,0.20917851,62871.0,62869.0,0.02870061]
[1728788097025,0.17627851,62870.0,62869.0,0.11]
[1728788097223,0.11922363,62870.0,62869.0,0.11]
[1728788098013,0.11891077,62870.0,62869.0,0.111]
[1728788098817,0.11891077,62870.0,62869.0,0.112]
[1728788098818,0.0004,62870.0,62869.0,0.112]
[1728788099027,0.0024,62870.0,62869.0,0.112]
[1728788099820,0.0024,62870.0,62869.0,0.111]
[1728788100021,0.0044,62870.0,62869.0,0.112]
[1728788101934,0.0044,62870.0,62869.0,0.2243499]
[1728788103524,0.0044,62870.0,62869.0,0.1448]
[1728788103726,0.0044,62870.0,62869.0,0.25612243]
[1728788104439,0.0044,62870.0,62869.0,0.33568331]
[1728788106131,0.0044,62870.0,62869.0,0.33564217]
[1728788106732,0.0044,62870.0,62869.0,0.1448]
[1728788106733,0.16346126,62870.0,62869.0,0.1448]
[1728788107032,0.12290654,62870.0,62869.0,0.1448]
[1728788110834,0.12295452,62870.0,62869.0,0.1448]
[1728788111632,0.16331741,62870.0,62869.0,0.1448]
[1728788111822,0.28187193,62870.0,62869.0,0.1448]
[1728788112137,0.28187193,62870.0,62869.0,0.1773]
[1728788113726,0.15891741,62871.0,62869.0,0.42097206]
[1728788114040,0.15891741,62871.0,62870.0,0.35367206]
[1728788115036,0.16091741,62871.0,62870.0,0.35367206]
[1728788115733,0.16091741,62871.0,62870.0,0.35467206]
[1728788117334,0.15991741,62871.0,62870.0,0.22314353]
[1728788119837,0.15991741,62871.0,62870.0,0.46545939]
[1728788120037,0.15991741,62871.0,62870.0,0.62392386]
[1728788120339,0.15991741,62871.0,62870.0,0.62337434]
[1728788120532,0.15991741,62871.0,62870.0,0.73465376]
[1728788120840,0.15991741,62871.0,62870.0,0.62337434]
[1728788121033,0.15991741,62871.0,62870.0,0.61840014]
[1728788121229,0.15991741,62871.0,62870.0,0.62337398]
[1728788121431,0.15991741,62871.0,62870.0,0.73465403]
[1728788121629,0.15991741,62871.0,62870.0,0.73962787]
[1728788121838,0.15991741,62871.0,62870.0,0.43817467]
[1728788122040,0.15991741,62871.0,62870.0,0.34280139]
[1728788122342,0.001,62871.0,62870.0,0.34280139]
[1728788122534,0.001,62871.0,62870.0,0.33782755]
[1728788122945,0.001,62871.0,62870.0,0.43320083]
[1728788123238,0.0321,62882.0,62870.0,0.33782755]
[1728788123443,0.0321,62882.0,62881.0,0.15768286]
[1728788124736,0.0321,62882.0,62881.0,0.15868286]
[1728788125141,0.0321,62882.0,62881.0,0.15968286]
[1728788127247,0.0321,62882.0,62881.0,0.112]
[1728788127445,0.00238588,62886.0,62883.0,0.079523]
[1728788127745,0.079518,62888.0,62885.0,0.04764956]
[1728788127947,0.079518,62888.0,62887.0,0.11]
[1728788128551,0.440318,62888.0,62887.0,0.11]
[1728788128850,0.61637716,62888.0,62887.0,0.11]
[1728788129051,0.25557716,62888.0,62887.0,0.11]
[1728788129238,0.25557716,62888.0,62887.0,0.111]
[1728788129434,0.19853517,62888.0,62887.0,0.111]
[1728788130242,0.55933517,62888.0,62887.0,0.111]
[1728788130448,0.61637716,62888.0,62887.0,0.112]
[1728788130945,0.61637716,62888.0,62887.0,0.0695595]
[1728788134341,0.49735999,62888.0,62887.0,0.0695595]
[1728788134544,0.61584378,62888.0,62887.0,0.0695595]
[1728788136946,0.49735999,62888.0,62887.0,0.0695595]
[1728788137151,0.49735999,62888.0,62887.0,0.002]
[1728788137848,0.53630617,62888.0,62887.0,0.002]
[1728788138041,0.61584358,62888.0,62887.0,0.002]
[1728788139653,0.440318,62888.0,62887.0,0.002]
[1728788142960,0.47103938,62888.0,62887.0,0.002]
[1728788144957,0.440318,62888.0,62887.0,0.002]
[1728788148164,0.079522,62885.0,62882.0,0.11]
[1728788148359,0.0004,62883.0,62882.0,0.11]
[1728788148561,0.11888503,62883.0,62882.0,0.11]
[1728788148955,0.1759273,62883.0,62882.0,0.11]
[1728788149451,0.1759273,62883.0,62882.0,0.112]
[1728788150553,0.11888503,62883.0,62882.0,0.111]
[1728788150760,0.1759273,62883.0,62882.0,0.112]
[1728788151664,0.0004,62883.0,62882.0,0.112]
[1728788159470,0.17592656,62883.0,62882.0,0.112]
[1728788160372,0.11888453,62883.0,62882.0,0.112]
[1728788160566,0.17592656,62883.0,62882.0,0.112]
[1728788163071,0.17592655,62883.0,62882.0,0.112]
[1728788166270,0.11888452,62883.0,62882.0,0.112]
[1728788166470,0.0004,62883.0,62882.0,0.112]
[1728788174987,0.03112123,62883.0,62882.0,0.112]
[1728788176680,0.0004,62883.0,62882.0,0.112]
[1728788181578,0.0004,62883.0,62882.0,0.04638133]
[1728788181579,0.118884,62883.0,62882.0,0.04638133]
[1728788187179,0.11888433,62883.0,62882.0,0.04638133]
[1728788188587,0.0004,62883.0,62882.0,0.04638133]
[1728788195792,0.0004,62883.0,62882.0,0.002]
[1728788196596,0.11888459,62883.0,62882.0,0.00132821]
[1728788199498,0.22888459,62883.0,62882.0,0.00132821]
[1728788199702,0.49258845,62883.0,62882.0,0.00132821]
[1728788200300,0.28592665,62883.0,62882.0,0.00132821]
[1728788200502,0.43574516,62883.0,62882.0,0.00132821]
[1728788200700,0.49278722,62883.0,62882.0,0.00132821]
[1728788201001,0.28592665,62883.0,62882.0,0.00132821]
[1728788201904,0.17592665,62883.0,62882.0,0.00132821]
[1728788202102,0.11888459,62883.0,62882.0,0.00132821]
[1728788203605,0.0004,62883.0,62882.0,0.06475996]
[1728788204601,0.0004,62883.0,62882.0,0.00132821]
[1728788206205,0.3612,62883.0,62882.0,0.00132821]
[1728788206401,0.0004,62883.0,62882.0,0.00132821]
[1728788206602,0.3612,62883.0,62882.0,0.00132821]
[1728788207001,0.3612,62883.0,62882.0,0.11132821]
[1728788207201,0.3612,62883.0,62882.0,0.17475996]
[1728788209696,0.3612,62883.0,62882.0,0.11132821]
[1728788213311,0.0004,62883.0,62882.0,0.11132821]
[1728788218714,0.1188833,62883.0,62881.0,0.079527]
[1728788219014,0.17552474,62882.0,62881.0,0.079527]
[1728788219316,0.1188833,62882.0,62881.0,0.079527]
[1728788219904,0.1188833,62882.0,62881.0,0.080527]
[1728788220107,0.1188833,62882.0,62881.0,0.081527]
[1728788220306,0.1188833,62882.0,62881.0,0.191527]
[1728788220501,0.1188833,62882.0,62881.0,0.189527]
[1728788220714,0.1188833,62882.0,62881.0,0.191527]
[1728788226607,0.0004,62882.0,62881.0,0.30604965]
[1728788227009,0.0004,62882.0,62881.0,0.38557665]
[1728788228409,0.0004,62882.0,62881.0,0.27099844]
[1728788229513,0.0004,62882.0,62881.0,0.38606301]
[1728788232703,0.0004,62882.0,62881.0,0.30659157]
[1728788233710,0.07006595,62882.0,62881.0,0.191527]
[1728788234520,0.11888147,62882.0,62881.0,0.191527]
[1728788236320,0.11888147,62882.0,62881.0,0.30650022]
[1728788237818,0.11988147,62882.0,62881.0,0.30650022]
[1728788239521,0.19114133,62882.0,62881.0,1.74438022]
[1728788239726,0.11988147,62882.0,62881.0,1.74438022]
[1728788240724,0.27890234,62882.0,62881.0,1.74438022]
[1728788241120,0.27890234,62882.0,62881.0,1.739407]
[1728788241315,0.27890234,62882.0,62881.0,1.74438013]
[1728788241515,0.27887422,62882.0,62881.0,1.74438013]
[1728788241823,0.15899275,62882.0,62881.0,1.9546814]
[1728788243020,0.15899275,62882.0,62881.0,1.94970827]
[1728788243421,0.15899275,62882.0,62881.0,1.94967849]
[1728788243920,0.15899275,62882.0,62881.0,1.58887849]
[1728788244121,0.0004,62883.0,62881.0,1.58887849]
[1728788244425,0.0004,62883.0,62882.0,0.11490577]
[1728788245426,0.3608,62900.0,62898.0,0.079505]
[1728788245625,0.3608,62900.0,62899.0,0.11]
[1728788246026,0.0323,62907.0,62899.0,0.18929722]
[1728788246237,0.0323,62907.0,62906.0,0.11]
[1728788247121,0.0323,62907.0,62906.0,0.15751219]
[1728788247316,0.0323,62907.0,62906.0,0.11]
[1728788247825,0.0323,62907.0,62906.0,0.111]
[1728788248030,0.0323,62907.0,62906.0,0.112]
[1728788248725,0.10194413,62907.0,62906.0,0.112]
[1728788249226,0.15074437,62907.0,62906.0,0.112]
[1728788249428,0.15074437,62907.0,62906.0,0.13996011]
[1728788251536,0.23735281,62907.0,62906.0,0.13996011]
[1728788251724,0.15074437,62907.0,62906.0,0.13996011]
[1728788252034,0.15074437,62907.0,62906.0,0.0941323]
[1728788256742,0.0323,62907.0,62906.0,0.0941323]
[1728788262538,0.3931,62907.0,62906.0,0.0941323]
[1728788264336,0.0323,62907.0,62906.0,0.0941323]
[1728788271342,0.1423,62907.0,62906.0,0.002]
[1728788271747,0.21194383,62907.0,62906.0,0.002]
[1728788271941,0.26074386,62907.0,62906.0,0.002]
[1728788272251,0.31776631,62907.0,62906.0,0.002]
[1728788272746,0.20776631,62907.0,62905.0,0.21881981]
[1728788273043,0.17586631,62906.0,62905.0,0.21881981]
[1728788273236,0.11884386,62906.0,62905.0,0.21881981]
[1728788273945,0.11884386,62906.0,62905.0,0.21981981]
[1728788274246,0.11884386,62906.0,62905.0,0.22081981]
[1728788274643,0.17586631,62906.0,62905.0,0.22081981]
[1728788274845,0.17586631,62906.0,62905.0,0.21981981]
[1728788275151,0.17686631,62906.0,62905.0,0.22081981]
[1728788276750,0.11984379,62906.0,62905.0,0.22081981]
[1728788277147,0.17686624,62906.0,62905.0,0.22081981]
[1728788278749,0.03211069,62906.0,62905.0,0.22081981]
[1728788280553,0.03211069,62906.0,62905.0,0.191495]
[1728788284847,0.03211054,62906.0,62905.0,0.191495]
[1728788286842,0.17686545,62906.0,62905.0,0.112]
[1728788287048,0.17686545,62906.0,62905.0,0.191495]
[1728788292056,0.38357117,62906.0,62905.0,0.191495]
[1728788292559,0.38357117,62906.0,62905.0,0.112]
[1728788293854,0.23881626,62906.0,62905.0,0.112]
[1728788294244,0.03211054,62906.0,62905.0,0.112]
[1728788301963,0.19825037,62906.0,62905.0,0.112]
[1728788304157,0.19825022,62906.0,62905.0,0.112]
[1728788305364,0.19825022,62906.0,62905.0,0.1438]
[1728788305556,0.07104312,62906.0,62905.0,0.1438]
[1728788308962,0.17686196,62906.0,62905.0,0.11]
[1728788310662,0.11984092,62906.0,62905.0,0.11]
[1728788313761,0.11984056,62906.0,62905.0,0.11]
[1728788316866,0.03210985,62906.0,62905.0,0.11]
[1728788317567,0.03210985,62906.0,62904.0,0.10559495]
[1728788317773,0.03110985,62905.0,62904.0,0.10559495]
[1728788318573,0.03111012,62905.0,62904.0,0.10559495]
[1728788318757,0.03111012,62905.0,62904.0,0.10659495]
[1728788319162,0.03311012,62905.0,62904.0,0.10759495]
[1728788320671,0.07404298,62905.0,62904.0,0.10759495]
[1728788322673,0.07404314,62905.0,62904.0,0.10759495]
[1728788322863,0.07404314,62905.0,62904.0,0.002]
[1728788324168,0.43484314,62905.0,62904.0,0.002]
[1728788325174,0.07404314,62905.0,62904.0,0.002]
[1728788325376,0.43484314,62905.0,62904.0,0.002]
[1728788326868,0.07404314,62905.0,62904.0,0.002]
[1728788327070,0.43484314,62905.0,62904.0,0.002]
[1728788328068,0.3959111,62905.0,62904.0,0.002]
[1728788328263,0.43484473,62905.0,62904.0,0.002]
[1728788330164,0.07404473,62905.0,62904.0,0.002]
[1728788330364,0.43484473,62905.0,62904.0,0.002]
[1728788332076,0.43484473,62905.0,62904.0,0.25997866]
[1728788332077,0.26973616,62905.0,62904.0,0.25997866]
[1728788332868,0.26973616,62905.0,62904.0,0.25997109]
[1728788334076,0.12764773,62906.0,62904.0,0.25997109]